fUSD/lending_fUSD_20251123
["ID","MTS","AMOUNT","RATE_DAILY","PERIOD"]
[394690403,1763896241177,-230.18508078,0.00016999,2]
[394690404,1763896241187,-500.0,0.00016999,2]
[394690405,1763896241196,-500.0,0.00016999,2]
[394690406,1763896241206,-500.0,0.00016999,2]
[394690407,1763896241216,-500.0,0.00016999,2]
[394690408,1763896241225,-500.0,0.00016999,2]
[394690409,1763896241234,-500.0,0.00016999,2]
[394690410,1763896241244,-536.1848729,0.00016999,2]
[394690411,1763896241253,-500.0,0.00016999,2]
[394690412,1763896241263,-500.0,0.00016999,2]
[394690413,1763896241273,-500.0,0.00016999,2]
[394690414,1763896241282,-500.0,0.00016999,2]
[394690415,1763896241291,-500.0,0.00016999,2]
[394690416,1763896241302,-500.0,0.00016999,2]
[394690417,1763896241311,-500.0,0.00016999,2]
[394690418,1763896241321,-500.0,0.00016999,2]
[394690419,1763896241330,-500.0,0.00016999,2]
[394690420,1763896241340,-500.0,0.00016999,2]
[394690421,1763896241350,-282.05205695,0.00016999,2]
[394690422,1763896241363,-500.0,0.00016999,2]
[394690423,1763896241373,-372.66009916,0.00016999,2]
[394690424,1763896241382,-191.36176969,0.00016999,2]
[394690425,1763896241392,-500.0,0.00016999,2]
[394690426,1763896241408,-500.0,0.00016999,2]
[394690427,1763896241435,-500.0,0.00016999,2]
[394690428,1763896241456,-500.0,0.00016999,2]
[394690429,1763896241477,-395.39090067,0.00016999,2]
[394690430,1763896241496,-500.0,0.00016999,2]
[394690431,1763896241515,-500.0,0.00016999,2]
[394690432,1763896241534,-500.0,0.00016999,2]
[394690433,1763896241554,-500.0,0.00016999,2]
[394690434,1763896241573,-500.0,0.00016999,2]
[394690435,1763896241592,-500.0,0.00016999,2]
[394690436,1763896241611,-629.56105074,0.00016999,2]
[394690437,1763896241631,-196.05387367,0.00016999,2]
[394690438,1763896241645,-500.0,0.00016999,2]
[394690439,1763896241665,-1654.0,0.00017,2]
[394690440,1763896241678,-302863.54337045,0.00017,2]
[394690441,1763896241699,-361.55519807,0.00017,2]
[394690453,1763896243856,-863.5,0.00017,2]
[394690457,1763896246510,-1403.99601738,0.00017,2]
[394690458,1763896246524,-308.25839091,0.00017,2]
[394690459,1763896246608,-4156.83662609,0.00017,2]
[394690462,1763896735245,163.77,7.982e-05,2]
[394690463,1763896754450,419.0,0.00013699,2]
[394690466,1763896973255,157.81,0.00019178,30]
[394690498,1763897432730,-150.0,0.00015288,2]
[394690499,1763897432739,-155.49,0.00015609,2]
[394690500,1763897432749,-252.611657,0.00015779,2]
[394690501,1763897432758,-850.18,0.00015859,2]
[394690502,1763897432767,-649.72,0.00015876,2]
[394690503,1763897432778,-151.0,0.00016097,2]
[394690504,1763897432787,-151.0,0.00016097,2]
[394690505,1763897432798,-1200.0,0.00016099,2]
[394690506,1763897432807,-300.0,0.00016099,2]
[394690507,1763897432816,-300.0,0.00016099,2]
[394690508,1763897432825,-5429.5212,0.000161,2]
[394690509,1763897432835,-6238.14011792,0.000161,2]
[394690510,1763897432844,-86108.01511451,0.000161,2]
[394690511,1763897432855,-16677.78683243,0.000161,2]
[394690512,1763897432880,-999.0,0.000161,2]
[394690513,1763897433075,-32637.0338113,0.000161,2]
[394690514,1763897433086,-1765.86379233,0.000161,2]
[394690515,1763897433097,-4182.81549363,0.000161,2]
[394690516,1763897433150,-262.49503197,0.000161,2]
[394690517,1763897433193,-544.67016943,0.000161,2]
[394690522,1763897438286,-13714.36006792,0.000161,2]
[394690523,1763897438394,-2229.18840639,0.000161,2]
[394690524,1763897438504,-650.0,0.000161,2]
[394690525,1763897438516,-13594.78840079,0.000161,2]
[394690526,1763897438528,-4038.49465,0.000161,2]
[394690575,1763897440368,-833.74245869,0.000161,2]
[394690578,1763897440381,-5605.35757061,0.000161,2]
[394690580,1763897440390,-172.75659376,0.000161,2]
[394690582,1763897440400,-5568.73793403,0.000161,2]
[394690584,1763897440409,-2500.0,0.000161,2]
[394690586,1763897440420,-287.25283801,0.00016149,2]
[394690588,1763897440430,-249.51543146,0.00016151,2]
[394690590,1763897440439,-585.93210678,0.0001619,2]
[394690592,1763897440449,-500.0,0.0001619,2]
[394690594,1763897440459,-225.95248106,0.0001619,2]
[394690596,1763897440468,-333.78497219,0.0001619,2]
[394690597,1763897440478,-500.0,0.0001619,2]
[394690598,1763897440487,-500.0,0.0001619,2]
[394690599,1763897440497,-500.0,0.0001619,2]
[394690600,1763897440507,-500.0,0.0001619,2]
[394690601,1763897440516,-500.0,0.0001619,2]
[394690602,1763897440532,-500.0,0.0001619,2]
[394690603,1763897440542,-500.0,0.0001619,2]
[394690604,1763897440552,-500.0,0.0001619,2]
[394690605,1763897440562,-500.0,0.0001619,2]
[394690606,1763897440571,-500.0,0.0001619,2]
[394690607,1763897440581,-500.0,0.0001619,2]
[394690608,1763897440591,-774.75,0.00016197,2]
[394690609,1763897440601,-5000.00885346,0.000162,5]
[394690610,1763897440610,-595.71,0.00016251,2]
[394690611,1763897440620,-500.0,0.00016357,2]
[394690612,1763897440630,-500.0,0.00016357,2]
[394690613,1763897440640,-552.60606673,0.00016357,2]
[394690614,1763897440649,-500.0,0.00016357,2]
[394690615,1763897440659,-500.0,0.00016357,2]
[394690616,1763897440669,-500.0,0.00016357,2]
[394690617,1763897440679,-500.0,0.00016357,2]
[394690618,1763897440688,-358.90945342,0.00016357,2]
[394690619,1763897440698,-500.0,0.00016357,2]
[394690620,1763897440707,-287.70953484,0.00016357,2]
[394690621,1763897440721,-500.0,0.00016357,2]
[394690622,1763897440730,-500.0,0.00016357,2]
[394690623,1763897440739,-452.04233049,0.00016357,2]
[394690624,1763897440749,-403.6184873,0.00016357,2]
[394690625,1763897440758,-147515.29,0.00016358,2]
[394690626,1763897440768,-2391.53,0.00016378,2]
[394690627,1763897440777,-196.29,0.00016438,2]
[394690628,1763897440787,-500.0,0.00016438,2]
[394690629,1763897440796,-500.0,0.00016438,2]
[394690630,1763897440806,-500.0,0.00016438,2]
[394690631,1763897440816,-500.0,0.00016438,2]
[394690632,1763897440826,-500.0,0.00016438,2]
[394690633,1763897440836,-500.0,0.00016438,2]
[394690634,1763897440846,-500.0,0.00016438,2]
[394690635,1763897440855,-349.66069405,0.00016438,2]
[394690636,1763897440865,-500.0,0.00016438,2]
[394690637,1763897440875,-500.0,0.00016438,2]
[394690638,1763897440884,-500.0,0.00016438,2]
[394690639,1763897440894,-500.0,0.00016438,2]
[394690640,1763897440903,-500.0,0.00016438,2]
[394690641,1763897440917,-500.0,0.00016438,2]
[394690642,1763897440930,-500.0,0.00016438,2]
[394690643,1763897440940,-500.0,0.00016438,2]
[394690644,1763897440949,-500.0,0.00016438,2]
[394690645,1763897440959,-600.0,0.00016438,2]
[394690646,1763897441099,-1000.0,0.000166,2]
[394690647,1763897441134,-999.0,0.00016649,3]
[394690648,1763897441143,-1000.0,0.000167,2]
[394690649,1763897441153,-1285.0,0.000167,2]
[394690650,1763897441163,-1265.0,0.000167,2]
[394690651,1763897441173,-196.29,0.00016712,2]
[394690652,1763897441184,-600.0,0.00016712,2]
[394690653,1763897441193,-200.0,0.00016864,2]
[394690654,1763897441203,-1000.0,0.00016899,2]
[394690655,1763897441212,-400.51149978,0.000169,2]
[394690656,1763897441222,-467.59,0.000169,2]
[394690657,1763897441231,-30240.04956056,0.000169,2]
[394690658,1763897441241,-280.43065886,0.000169,2]
[394690659,1763897441250,-152.0,0.00016925,2]
[394690660,1763897441260,-500.0,0.00016973,2]
[394690661,1763897441269,-507.04393163,0.00016973,2]
[394690662,1763897441278,-507.61746335,0.00016973,2]
[394690663,1763897441287,-330.8232162,0.00016973,2]
[394690664,1763897441296,-435.63429178,0.00016973,2]
[394690665,1763897441304,-173.0,0.00016983,2]
[394690666,1763897441313,-196.29,0.00016986,2]
[394690667,1763897441323,-600.0,0.00016986,2]
[394690668,1763897441333,-1405.47185719,0.0001699,2]
[394690669,1763897441342,-150.0,0.00016999,2]
[394690670,1763897441352,-500.0,0.00016999,2]
[394690671,1763897441361,-529.61722554,0.00016999,2]
[394690672,1763897441374,-150.0,0.00016999,2]
[394690673,1763897441383,-150.0,0.00016999,2]
[394690674,1763897441393,-150.0,0.00016999,2]
[394690675,1763897441402,-261.05013768,0.00016999,2]
[394690676,1763897441412,-500.0,0.00016999,2]
[394690677,1763897441421,-598.09978098,0.00016999,2]
[394690678,1763897441431,-1321.0,0.00017,2]
[394690679,1763897441440,-61304.60839871,0.00017,2]
[394690680,1763897441489,-1320.23179554,0.00017,2]
[394690681,1763897441500,-397.05425772,0.00017,2]
[394690682,1763897441514,-160776.04415151,0.00017,2]
[394690683,1763897441523,-1316.1526499,0.00017,2]
[394690684,1763897441533,-2427.9911387,0.00017,2]
[394690685,1763897441542,-43114.0657142,0.00017,2]
[394690686,1763897441552,-200.0,0.00017,2]
[394690687,1763897441562,-236.29714133,0.00017,2]
[394690688,1763897441571,-2000.0,0.00017,2]
[394690689,1763897441580,-250.0,0.00017,2]
[394690690,1763897441590,-151.0,0.00017,2]
[394690691,1763897441599,-151.0,0.00017,2]
[394690692,1763897441609,-151.0,0.00017,2]
[394690693,1763897441618,-151.0,0.00017,2]
[394690694,1763897441628,-151.0,0.00017,2]
[394690695,1763897441638,-293.934002,0.00017,2]
[394690696,1763897441648,-151.0,0.00017,2]
[394690697,1763897441658,-151.0,0.00017,2]
[394690698,1763897441667,-151.0,0.00017,2]
[394690699,1763897441676,-151.0,0.00017,2]
[394690700,1763897441685,-151.0,0.00017,2]
[394690701,1763897441694,-165.130832,0.00017,2]
[394690702,1763897441705,-151.0,0.00017,2]
[394690703,1763897441715,-151.0,0.00017,2]
[394690704,1763897441724,-151.0,0.00017,2]
[394690705,1763897441733,-151.0,0.00017,2]
[394690706,1763897441743,-151.0,0.00017,2]
[394690707,1763897441752,-151.0,0.00017,2]
[394690708,1763897441761,-151.0,0.00017,2]
[394690709,1763897441770,-151.0,0.00017,2]
[394690710,1763897441780,-151.0,0.00017,2]
[394690711,1763897441789,-151.0,0.00017,2]
[394690712,1763897441799,-151.0,0.00017,2]
[394690713,1763897441808,-151.0,0.00017,2]
[394690714,1763897441817,-151.0,0.00017,2]
[394690715,1763897441826,-151.0,0.00017,2]
[394690716,1763897441835,-151.0,0.00017,2]
[394690717,1763897441844,-155.646948,0.00017,2]
[394690718,1763897441853,-151.0,0.00017,2]
[394690719,1763897441862,-151.0,0.00017,2]
[394690720,1763897441871,-151.0,0.00017,2]
[394690721,1763897441881,-151.0,0.00017,2]
[394690722,1763897441890,-151.0,0.00017,2]
[394690723,1763897441899,-151.0,0.00017,2]
[394690724,1763897441908,-151.0,0.00017,2]
[394690725,1763897441917,-151.0,0.00017,2]
[394690726,1763897441930,-151.0,0.00017,2]
[394690727,1763897441939,-151.0,0.00017,2]
[394690728,1763897441948,-151.0,0.00017,2]
[394690729,1763897441957,-151.0,0.00017,2]
[394690730,1763897441967,-151.0,0.00017,2]
[394690731,1763897441976,-151.0,0.00017,2]
[394690732,1763897441985,-182.59858,0.00017,2]
[394690733,1763897441994,-151.0,0.00017,2]
[394690734,1763897442007,-151.0,0.00017,2]
[394690735,1763897442016,-151.0,0.00017,2]
[394690736,1763897442026,-151.0,0.00017,2]
[394690737,1763897442035,-151.0,0.00017,2]
[394690738,1763897442044,-151.0,0.00017,2]
[394690739,1763897442055,-151.0,0.00017,2]
[394690740,1763897442064,-255.929764,0.00017,2]
[394690741,1763897442073,-448296.60603449,0.00017,2]
[394690742,1763897443354,-509.661492,0.00017,2]
[394690743,1763897443414,-790.49592284,0.00017,2]
[394690750,1763897446506,-8343.0,0.00017,2]
[394690751,1763897446667,-934.40077117,0.00017,2]
[394690752,1763897548805,500.0,0.00017,30]
[394690757,1763897834926,538.4229665,0.00017,30]
[394690758,1763897839360,157.85715269,0.00015,4]
[394690776,1763898593822,166.66,0.00014622,2]
[394690777,1763898594030,166.66,0.0001493,2]
[394690788,1763898631640,-150.0,0.00015236,2]
[394690789,1763898631650,-166.66,0.00015238,2]
[394690790,1763898631659,-150.0,0.00015288,2]
[394690791,1763898631670,-150.0,0.00015288,2]
[394690792,1763898631679,-150.0,0.00015288,2]
[394690793,1763898631689,-150.0,0.00015288,2]
[394690794,1763898631699,-150.0,0.00015288,2]
[394690795,1763898631708,-150.0,0.00015288,2]
[394690796,1763898631719,-250.0,0.00015327,2]
[394690797,1763898631728,-321.57,0.00015392,2]
[394690798,1763898631738,-166.66,0.00015546,2]
[394690799,1763898631748,-253.0,0.00015606,2]
[394690800,1763898631758,-200.0,0.00015612,2]
[394690801,1763898631768,-166.67,0.00015623,2]
[394690802,1763898631781,-1200.0,0.00015626,2]
[394690803,1763898631791,-150.0,0.00015627,2]
[394690805,1763898631801,-150.0,0.00015627,2]
[394690807,1763898631810,-563.0,0.00015679,2]
[394690808,1763898631820,-300.0,0.00015679,2]
[394690809,1763898631830,-300.0,0.00015679,2]
[394690810,1763898631839,-475.4538326,0.0001568,2]
[394690811,1763898631852,-291.36469732,0.0001568,2]
[394690839,1763898638303,-1183.36147008,0.0001568,2]
[394690840,1763898638313,-159.863,0.0001568,2]
[394690841,1763898638323,-256.0,0.00015686,2]
[394690842,1763898638333,-500.0,0.00015799,2]
[394690843,1763898638342,-195.0,0.00015836,2]
[394690844,1763898638351,-166.66,0.00015854,2]
[394690845,1763898638360,-150.0,0.00015876,2]
[394690846,1763898638370,-9538.7019,0.00015899,2]
[394690847,1763898638379,-5011.8641406,0.00015899,2]
[394690848,1763898638389,-15428.24290431,0.000159,2]
[394690849,1763898638398,-356.22348299,0.000159,2]
[394690850,1763898638408,-356.22348299,0.000159,2]
[394690851,1763898638417,-356.22348299,0.000159,2]
[394690852,1763898638427,-7365.1,0.00015914,2]
[394690853,1763898638436,-422.0,0.00015961,2]
[394690854,1763898638449,-150.0,0.00015967,2]
[394690855,1763898638458,-150.0,0.00015967,2]
[394690856,1763898638468,-300.0,0.00015981,2]
[394690857,1763898638478,-500.0,0.00015999,2]
[394690858,1763898638488,-500.0,0.00015999,2]
[394690859,1763898638497,-1456.39,0.00015999,2]
[394690860,1763898638506,-13880.17,0.00015999,2]
[394690861,1763898638515,-9999.99,0.00015999,2]
[394690862,1763898638527,-299.99,0.00015999,2]
[394690863,1763898638536,-6058.78,0.00015999,2]
[394690864,1763898638545,-150.99,0.00015999,2]
[394690865,1763898638555,-150.99,0.00015999,2]
[394690866,1763898638564,-83311.51,0.00015999,2]
[394690867,1763898638574,-9999.99,0.00015999,2]
[394690868,1763898638583,-1987.46,0.00015999,2]
[394690869,1763898638592,-9999.99,0.00015999,2]
[394690870,1763898638602,-569.27,0.00015999,2]
[394690871,1763898638611,-500.0,0.00015999,2]
[394690872,1763898638620,-500.0,0.00015999,2]
[394690873,1763898638630,-500.0,0.00015999,2]
[394690874,1763898638639,-500.0,0.00015999,2]
[394690875,1763898638649,-520.66,0.00015999,2]
[394690876,1763898638658,-2951.73,0.00015999,2]
[394690877,1763898638667,-9999.99,0.00015999,2]
[394690878,1763898638677,-1000.0,0.00016,2]
[394690879,1763898638686,-4841.56370102,0.00016,2]
[394690880,1763898638696,-422.0,0.00016008,2]
[394690881,1763898638705,-253.0,0.00016052,2]
[394690882,1763898638714,-253.0,0.00016083,2]
[394690883,1763898638724,-9999.99,0.00016116,2]
[394690884,1763898638733,-3593.49,0.00016116,2]
[394690885,1763898638742,-2229.24,0.00016116,2]
[394690886,1763898638752,-150.0,0.00016137,2]
[394690887,1763898638761,-150.0,0.00016137,2]
[394690888,1763898638770,-150.0,0.00016137,2]
[394690889,1763898638779,-150.0,0.00016137,2]
[394690890,1763898638788,-1000.0,0.00016149,2]
[394690891,1763898638798,-500.0,0.00016149,2]
[394690892,1763898638807,-500.0,0.00016149,2]
[394690893,1763898638816,-500.0,0.00016149,2]
[394690894,1763898638826,-500.0,0.00016149,2]
[394690895,1763898638835,-500.0,0.00016149,2]
[394690896,1763898638844,-500.0,0.00016149,2]
[394690897,1763898638853,-500.0,0.00016149,2]
[394690898,1763898638863,-500.0,0.00016149,2]
[394690899,1763898638872,-274.04751894,0.00016149,2]
[394690900,1763898638881,-500.0,0.00016149,2]
[394690901,1763898638891,-500.0,0.00016149,2]
[394690902,1763898638901,-500.0,0.00016149,2]
[394690903,1763898638910,-500.0,0.00016149,2]
[394690904,1763898638920,-500.0,0.00016149,2]
[394690905,1763898638929,-500.0,0.00016149,2]
[394690906,1763898638939,-500.0,0.00016149,2]
[394690907,1763898638949,-500.0,0.00016149,2]
[394690908,1763898638958,-500.0,0.00016149,2]
[394690909,1763898638968,-500.0,0.00016149,2]
[394690910,1763898638983,-500.0,0.00016149,2]
[394690911,1763898638994,-166.66,0.00016162,2]
[394690912,1763898639003,-528.29664256,0.00016199,2]
[394690913,1763898639013,-500.0,0.00016199,2]
[394690914,1763898639022,-251.72,0.00016272,2]
[394690915,1763898639032,-520.66,0.00016273,2]
[394690916,1763898639041,-150.0,0.00016307,2]
[394690917,1763898639050,-150.0,0.00016307,2]
[394690918,1763898639059,-500.0,0.00016358,2]
[394690919,1763898639068,-504.63183144,0.00016358,2]
[394690920,1763898639077,-500.0,0.00016358,2]
[394690921,1763898639086,-500.0,0.00016358,2]
[394690922,1763898639096,-422.0,0.00016395,2]
[394690923,1763898639105,-478.0,0.00016404,2]
[394690924,1763898639114,-600.0,0.00016438,2]
[394690925,1763898639123,-478.0,0.0001644,2]
[394690926,1763898639133,-478.0,0.00016466,2]
[394690927,1763898639142,-422.0,0.00016491,2]
[394690928,1763898639151,-478.0,0.00016495,2]
[394690929,1763898639162,-520.66,0.00016547,2]
[394690930,1763898639171,-500.0,0.00016553,2]
[394690931,1763898639181,-1000.0,0.00016554,2]
[394690932,1763898639191,-150.0,0.00016647,2]
[394690933,1763898639199,-150.0,0.00016647,2]
[394690934,1763898639209,-300.0,0.00016707,2]
[394690935,1763898639219,-202.83862469,0.00016707,2]
[394690936,1763898639228,-378.85685024,0.00016707,2]
[394690937,1763898639238,-400.0,0.00016712,2]
[394690938,1763898639247,-269.0,0.00016748,2]
[394690939,1763898639257,-478.0,0.00016773,2]
[394690940,1763898639266,-478.0,0.00016806,2]
[394690941,1763898639275,-520.66,0.00016821,2]
[394690942,1763898639284,-5888.0,0.00016827,2]
[394690943,1763898639294,-478.0,0.00016888,2]
[394690944,1763898639303,-2226.52413444,0.00016899,2]
[394690945,1763898639312,-1581.75452667,0.00016899,2]
[394690946,1763898639321,-421.17280734,0.000169,2]
[394690947,1763898639330,-914.01672645,0.000169,2]
[394690948,1763898639339,-167.0655304,0.000169,2]
[394690949,1763898639348,-500.0,0.00016973,2]
[394690950,1763898639356,-500.0,0.00016973,2]
[394690951,1763898639365,-500.0,0.00016973,2]
[394690952,1763898639375,-502.32219284,0.00016973,2]
[394690953,1763898639384,-150.0,0.00016986,2]
[394690954,1763898639393,-150.0,0.00016986,2]
[394690955,1763898639402,-150.0,0.00016986,2]
[394690956,1763898639411,-150.0,0.00016986,2]
[394690957,1763898639421,-150.0,0.00016986,2]
[394690958,1763898639430,-150.0,0.00016986,2]
[394690959,1763898639442,-293.69938487,0.00016999,2]
[394690960,1763898639456,-275.84527373,0.00016999,2]
[394690961,1763898639466,-152.19317623,0.00016999,2]
[394690962,1763898639475,-150.0,0.00016999,2]
[394690963,1763898639486,-150.0,0.00016999,2]
[394690964,1763898639496,-150.0,0.00016999,2]
[394690965,1763898639505,-150.0,0.00016999,2]
[394690966,1763898639514,-150.0,0.00016999,2]
[394690967,1763898639526,-150.0,0.00016999,2]
[394690968,1763898639536,-150.0,0.00016999,2]
[394690969,1763898639546,-150.0,0.00016999,2]
[394690970,1763898639555,-500.0,0.00016999,2]
[394690971,1763898639563,-150.0,0.00016999,2]
[394690972,1763898639572,-500.0,0.00016999,2]
[394690973,1763898639581,-500.0,0.00016999,2]
[394690974,1763898639591,-500.0,0.00016999,2]
[394690975,1763898639601,-500.0,0.00016999,2]
[394690976,1763898639610,-500.0,0.00016999,2]
[394690977,1763898639619,-205.31234714,0.00016999,2]
[394690978,1763898639628,-150.0,0.00016999,2]
[394690979,1763898639637,-150.0,0.00016999,2]
[394690980,1763898639646,-150.0,0.00016999,2]
[394690981,1763898639655,-150.0,0.00016999,2]
[394690982,1763898639664,-150.0,0.00016999,2]
[394690983,1763898639673,-500.0,0.00016999,2]
[394690984,1763898639682,-500.0,0.00016999,2]
[394690985,1763898639691,-500.0,0.00016999,2]
[394690986,1763898639700,-500.0,0.00016999,2]
[394690987,1763898639709,-500.0,0.00016999,2]
[394690988,1763898639718,-500.0,0.00016999,2]
[394690989,1763898639727,-500.0,0.00016999,2]
[394690990,1763898639736,-500.0,0.00016999,2]
[394690991,1763898639746,-500.0,0.00016999,2]
[394690992,1763898639754,-410.67331085,0.00016999,2]
[394690993,1763898639765,-500.0,0.00016999,2]
[394690994,1763898639774,-500.0,0.00016999,2]
[394690995,1763898639782,-500.0,0.00016999,2]
[394690996,1763898639792,-500.0,0.00016999,2]
[394690997,1763898639801,-500.0,0.00016999,2]
[394690998,1763898639811,-264.49040135,0.00016999,2]
[394690999,1763898639820,-500.0,0.00016999,2]
[394691000,1763898639829,-500.0,0.00016999,2]
[394691001,1763898639838,-500.0,0.00016999,2]
[394691002,1763898639847,-500.0,0.00016999,2]
[394691003,1763898639856,-500.0,0.00016999,2]
[394691004,1763898639866,-500.0,0.00016999,2]
[394691005,1763898639876,-500.0,0.00016999,2]
[394691006,1763898639885,-500.0,0.00016999,2]
[394691008,1763898639894,-276.37442755,0.00016999,2]
[394691009,1763898639903,-500.0,0.00016999,2]
[394691010,1763898639913,-500.0,0.00016999,2]
[394691011,1763898639922,-500.0,0.00016999,2]
[394691012,1763898639931,-500.0,0.00016999,2]
[394691013,1763898639940,-500.0,0.00016999,2]
[394691015,1763898639950,-540.36184872,0.00016999,2]
[394691016,1763898639959,-500.0,0.00016999,2]
[394691017,1763898639968,-500.0,0.00016999,2]
[394691018,1763898639977,-500.0,0.00016999,2]
[394691019,1763898639986,-500.0,0.00016999,2]
[394691020,1763898639996,-500.0,0.00016999,2]
[394691021,1763898640005,-500.0,0.00016999,2]
[394691022,1763898640014,-500.0,0.00016999,2]
[394691023,1763898640023,-500.0,0.00016999,2]
[394691026,1763898640032,-500.0,0.00016999,2]
[394691028,1763898640041,-500.0,0.00016999,2]
[394691030,1763898640050,-500.0,0.00016999,2]
[394691032,1763898640059,-500.0,0.00016999,2]
[394691033,1763898640068,-500.0,0.00016999,2]
[394691034,1763898640077,-500.0,0.00016999,2]
[394691035,1763898640086,-500.0,0.00016999,2]
[394691036,1763898640095,-500.0,0.00016999,2]
[394691037,1763898640104,-500.0,0.00016999,2]
[394691038,1763898640117,-500.0,0.00016999,2]
[394691039,1763898640130,-500.0,0.00016999,2]
[394691040,1763898640140,-500.0,0.00016999,2]
[394691041,1763898640150,-500.0,0.00016999,2]
[394691042,1763898640161,-500.0,0.00016999,2]
[394691043,1763898640171,-500.0,0.00016999,2]
[394691044,1763898640181,-500.0,0.00016999,2]
[394691045,1763898640192,-500.0,0.00016999,2]
[394691046,1763898640202,-500.0,0.00016999,2]
[394691047,1763898640213,-500.0,0.00016999,2]
[394691048,1763898640222,-500.0,0.00016999,2]
[394691049,1763898640350,-500.0,0.00016999,2]
[394691050,1763898640367,-500.0,0.00016999,2]
[394691051,1763898640378,-500.0,0.00016999,2]
[394691052,1763898640388,-500.0,0.00016999,2]
[394691053,1763898640398,-500.0,0.00016999,2]
[394691054,1763898640408,-500.0,0.00016999,2]
[394691055,1763898640418,-450.00000001,0.00016999,2]
[394691056,1763898640427,-500.0,0.00016999,2]
[394691057,1763898640437,-500.0,0.00016999,2]
[394691058,1763898640453,-500.0,0.00016999,2]
[394691059,1763898640461,-500.0,0.00016999,2]
[394691060,1763898640471,-500.0,0.00016999,2]
[394691061,1763898640480,-500.0,0.00016999,2]
[394691062,1763898640491,-500.0,0.00016999,2]
[394691063,1763898640510,-500.0,0.00016999,2]
[394691064,1763898640521,-1057.0,0.00017,2]
[394691065,1763898640531,-397716.68278759,0.00017,2]
[394691066,1763898640547,-30460.04956056,0.00017,2]
[394691067,1763898640965,-13184.99307076,0.00017,2]
[394691068,1763898640995,-20000.24109,0.00017,2]
[394691069,1763898641009,-828.30455859,0.00017,2]
[394691070,1763898641024,-372.34049029,0.00017,2]
[394691071,1763898641035,-393.66239999,0.00017,2]
[394691114,1763898645660,-2492.77096817,0.00017,2]
[394691115,1763898645670,-236.29714133,0.00017,2]
[394691116,1763898645679,-85.07215789,0.00017,2]
[394691117,1763898645842,-3254.75690655,0.00017,2]
[394691121,1763899445433,1000.0,0.000215,120]
[394691122,1763899453527,448.06,0.00013699,2]
[394691134,1763899570427,4000.0,0.000215,120]
[394691139,1763899798006,167.83,0.00012584,2]
[394691140,1763899798210,167.83,0.00013843,2]
[394691144,1763899831653,-167.83,0.00015101,2]
[394691145,1763899831663,-3569.2,0.00015253,2]
[394691146,1763899831672,-300.0,0.00015287,2]
[394691147,1763899831681,-300.0,0.00015287,2]
[394691148,1763899831690,-1200.0,0.00015287,2]
[394691149,1763899831699,-150.0,0.00015288,2]
[394691150,1763899831708,-150.0,0.00015288,2]